bitfinex/quotes_SOLUSD_20251208
["timestamp","ask_amount","ask_price","bid_price","bid_amount"]
[1765211887507,21.82684923,136.57,136.51,13.01690431]
[1765211887696,21.82684923,136.57,136.52,20.34146587]
[1765211887697,8.80994492,136.57,136.52,20.34146587]
[1765211887913,0.68,136.56,136.53,13.01690431]
[1765211888500,0.68,136.56,136.53,20.34127432]
[1765211888703,8.0028317,136.56,136.53,13.01690431]
[1765211889222,0.68,136.58,136.55,13.01690431]
[1765211889527,0.68,136.58,136.56,13.01690431]
[1765211890088,0.68,136.6,136.57,13.01690431]
[1765211890289,0.68,136.6,136.58,13.01690431]
[1765211890608,8.04,136.61,136.56,0.69]
[1765211890609,8.04,136.61,136.59,13.01690431]
[1765211890818,8.72,136.61,136.59,13.01690431]
[1765211891028,0.68,136.61,136.59,13.01690431]
[1765211891191,0.68,136.6,136.56,13.01690431]
[1765211891701,0.68,136.6,136.57,20.3391346]
[1765211891888,0.68,136.6,136.57,13.01690431]
[1765211892307,0.68,136.6,136.58,20.33853484]
[1765211892509,8.7,136.62,136.59,13.01690431]
[1765211892728,15.33987799,136.62,136.59,13.01690431]
[1765211892909,15.33987799,136.62,136.56,8.02]
[1765211892910,0.68,136.61,136.57,13.01690431]
[1765211893107,0.68,136.61,136.58,13.01690431]
[1765211893513,0.68,136.61,136.59,13.01690431]
[1765211893915,0.68,136.61,136.58,13.01690431]
[1765211894318,0.68,136.61,136.58,20.33861507]
[1765211894502,8.02,136.62,136.6,13.01690431]
[1765211894706,8.02,136.62,136.59,13.01690431]
[1765211894930,0.68,136.61,136.59,13.01690431]
[1765211895434,0.68,136.61,136.57,20.33904724]
[1765211895733,8.02,136.62,136.6,13.01690431]
[1765211896034,8.7,136.62,136.6,20.33734262]
[1765211896219,0.68,136.61,136.59,13.01690431]
[1765211896608,8.02,136.62,136.59,20.33808144]
[1765211896838,8.7,136.62,136.6,13.01690431]
[1765211898723,8.7,136.62,136.59,20.33808144]
[1765211899109,8.7,136.62,136.59,13.01690431]
[1765211899305,0.68,136.61,136.58,20.33862052]
[1765211899527,0.68,136.61,136.59,13.01690431]
[1765211900356,8.02,136.62,136.59,13.01690431]
[1765211900539,8.7,136.62,136.59,13.01690431]
[1765211901131,8.02,136.62,136.6,13.01690431]
[1765211901638,8.02,136.62,136.59,7.98107565]
[1765211901639,8.02,136.62,136.61,13.67690431]
[1765211901857,16.308864,136.65,136.61,13.67690431]
[1765211902055,0.7,136.67,136.63,13.01690431]
[1765211902353,0.7,136.67,136.64,13.01690431]
[1765211902556,25.11880892,136.66,136.61,13.01690431]
[1765211902750,25.11880892,136.66,136.54,45.42698178]
[1765211902751,8.80994492,136.63,136.58,13.01690431]
[1765211902957,8.80994492,136.63,136.59,13.01690431]
[1765211903255,8.80994492,136.63,136.56,0.66]
[1765211903256,8.72,136.62,136.57,13.01690431]
[1765211903461,8.01978297,136.62,136.57,13.01690431]
[1765211903762,8.72,136.61,136.57,13.01690431]
[1765211904131,8.02,136.62,136.59,13.01690431]
[1765211904529,8.02,136.62,136.58,0.66]
[1765211904530,8.72,136.62,136.6,13.01690431]
[1765211905361,8.72,136.62,136.59,20.33799482]
[1765211905728,0.7,136.61,136.57,13.01690431]
[1765211905947,13.71690431,136.61,136.57,13.01690431]
[1765211906148,0.7,136.61,136.57,20.33881296]
[1765211906427,0.7,136.6,136.57,20.33881296]
[1765211906649,0.7,136.6,136.57,20.33913745]
[1765211906954,0.7,136.6,136.57,14.75996707]
[1765211907159,0.7,136.6,136.56,7.43773393]
[1765211907358,0.7,136.6,136.53,34.61961017]
[1765211907359,7.43773393,136.57,136.53,7.43773393]
[1765211907676,8.72,136.56,136.53,14.76173547]
[1765211907975,8.72,136.56,136.54,7.43773393]
[1765211908178,0.7,136.55,136.52,7.43773393]
[1765211908476,0.7,136.55,136.53,7.32436902]
[1765211909758,8.02353548,136.55,136.51,7.43773393]
[1765211910146,0.7,136.54,136.51,7.43773393]
[1765211910657,8.02,136.56,136.52,8.09773393]
[1765211910868,8.02,136.56,136.53,7.43773393]
[1765211911167,0.7,136.55,136.52,14.76261747]
[1765211911663,15.46141685,136.55,136.49,8.02]
[1765211911866,15.46141685,136.55,136.5,7.43773393]
[1765211912065,8.13773393,136.54,136.48,18.31705084]
[1765211912364,15.45773393,136.53,136.49,7.43773393]
[1765211912579,16.15773393,136.53,136.48,14.76446292]
[1765211912761,0.7,136.52,136.48,14.76446292]
[1765211912952,0.7,136.52,136.49,14.76422944]
[1765211913156,24.328864,136.54,136.5,7.43773393]
[1765211913458,8.72,136.54,136.51,7.43773393]
[1765211913672,8.02,136.54,136.52,14.762668]
[1765211915151,8.02,136.57,136.53,8.09773393]
[1765211915361,0.7,136.56,136.53,7.43773393]
[1765211915558,0.7,136.56,136.52,14.762668]
[1765211915767,15.46062744,136.56,136.52,14.762668]
[1765211915950,15.46062744,136.56,136.51,14.76309062]
[1765211916251,7.43773393,136.54,136.49,14.76405859]
[1765211916446,15.45773393,136.54,136.5,14.76359435]
[1765211916683,8.02,136.54,136.51,7.43773393]
[1765211916856,8.02,136.54,136.52,7.43773393]
[1765211917251,8.02,136.54,136.52,15.42258841]
[1765211917558,8.02,136.56,136.53,7.43773393]
[1765211917747,8.72,136.56,136.52,14.76258841]
[1765211917940,0.7,136.55,136.52,7.32485448]
[1765211918136,0.7,136.55,136.51,14.76305558]
[1765211918342,0.7,136.55,136.52,7.32493142]
[1765211919666,0.7,136.55,136.52,3.12648009]
[1765211920646,8.0233583,136.55,136.51,10.45195075]
[1765211920942,3.12648009,136.54,136.5,3.12648009]
[1765211921157,8.02,136.53,136.5,10.45247857]
[1765211921463,0.7,136.52,136.5,10.45247857]
[1765211921639,0.7,136.52,136.48,8.02]
[1765211921640,0.7,136.52,136.49,10.45302415]
[1765211922243,8.02,136.53,136.49,11.11302415]
[1765211922444,8.72,136.53,136.5,3.12648009]
[1765211924370,8.72,136.53,136.5,10.45241634]
[1765211924772,8.72,136.53,136.5,11.11241634]
[1765211925673,8.02,136.53,136.51,3.12648009]
[1765211925979,8.72,136.55,136.51,3.78648009]
[1765211926273,8.72,136.55,136.51,10.45146729]
[1765211926462,0.7,136.54,136.51,7.3249872]
[1765211926663,8.14637978,136.54,136.48,33.78339794]
[1765211927053,7.44637978,136.53,136.48,33.78339794]
[1765211927256,8.14637978,136.53,136.49,7.32630987]
[1765211927457,0.7,136.52,136.49,7.32630987]
[1765211927974,16.16637978,136.52,136.47,0.66]
[1765211928161,16.16637978,136.52,136.47,8.10637978]
[1765211928359,7.44637978,136.5,136.45,14.77462186]
[1765211928569,7.44637978,136.5,136.47,7.32761721]
[1765211928771,0.7,136.5,136.46,15.43431598]
[1765211928968,0.7,136.5,136.47,7.32747852]
[1765211929767,15.46637978,136.49,136.44,15.43526721]
[1765211930082,15.46637978,136.49,136.45,7.32867775]
[1765211930284,0.7,136.48,136.45,7.32867775]
[1765211930959,8.02,136.49,136.45,14.77505753]
[1765211931162,8.02,136.49,136.46,8.10637978]
[1765211931684,8.02,136.49,136.46,8.13637978]
[1765211931862,8.02,136.49,136.46,7.44637978]
[1765211932063,8.02,136.49,136.47,0.69]
[1765211932263,8.02,136.52,136.48,14.77346067]
[1765211932687,8.71,136.52,136.49,0.69]
[1765211933287,8.71,136.52,136.48,14.77346067]
[1765211933482,25.018864,136.54,136.5,7.44637978]
[1765211933874,25.018864,136.54,136.5,8.13637978]
[1765211934472,25.018864,136.54,136.48,25.64478311]
[1765211934473,25.018864,136.54,136.51,14.77185044]
[1765211934684,25.018864,136.54,136.51,15.46185044]
[1765211934893,0.69,136.56,136.53,7.44637978]
[1765211935189,8.71,136.56,136.53,7.44637978]
[1765211935386,8.71,136.56,136.53,8.13637978]
[1765211935590,8.71,136.56,136.53,7.44637978]
[1765211935591,8.02,136.56,136.53,7.44637978]
[1765211935778,8.01141614,136.59,136.55,7.44637978]
[1765211935978,0.69,136.58,136.55,7.44637978]
[1765211936502,0.69,136.58,136.55,14.76959821]
[1765211937003,15.46637978,136.57,136.53,7.32392934]
[1765211937189,8.80994492,136.53,136.48,7.44637978]
[1765211937395,15.46637978,136.52,136.48,7.44637978]
[1765211937717,16.15637978,136.52,136.48,7.44637978]
[1765211938027,8.02,136.52,136.51,7.44637978]
[1765211938191,0.69,136.55,136.51,7.44637978]
[1765211938192,8.02,136.54,136.51,7.44637978]
[1765211938501,8.02,136.54,136.52,7.44637978]
[1765211939381,0.71,136.57,136.53,8.15637978]
[1765211939584,8.02,136.56,136.54,7.44637978]
[1765211940376,8.02,136.56,136.55,7.44637978]
[1765211940696,16.308864,136.58,136.55,8.15637978]
[1765211940916,75.0,136.67,136.55,8.15637978]
[1765211940917,0.71,136.62,136.57,7.44637978]
[1765211941075,0.71,136.62,136.59,7.44637978]
[1765211942599,8.80994492,136.6,136.55,14.7696949]
[1765211942806,8.02,136.59,136.55,14.7696949]
[1765211943014,16.17637978,136.59,136.54,14.77015951]
[1765211943307,33.2751887,136.58,136.53,14.7705741]
[1765211943599,33.2751887,136.58,136.53,7.44637978]
[1765211943805,8.15637978,136.57,136.52,14.77113737]
[1765211944007,25.61858075,136.62,136.56,7.44637978]
[1765211944208,0.71,136.6,136.57,7.44637978]
[1765211944378,7.44637978,136.59,136.54,7.44637978]
[1765211944578,8.02,136.58,136.54,7.44637978]
[1765211944780,8.02,136.58,136.55,14.76934067]
[1765211945000,0.71,136.57,136.54,14.77023532]
[1765211945412,8.02,136.58,136.55,7.32320276]
[1765211945590,8.02,136.58,136.56,7.32271493]
[1765211946199,8.02,136.58,136.56,15.47909471]
[1765211946506,17.018864,136.62,136.57,33.78426291]
[1765211946812,17.018864,136.62,136.59,7.44637978]
[1765211949293,8.02,136.6,136.57,14.7684433]
[1765211949493,8.73,136.6,136.57,7.32206352]
[1765211950406,8.73,136.6,136.56,15.47896615]
[1765211950702,8.73,136.6,136.52,24.328864]
[1765211950703,8.15637978,136.59,136.53,8.15637978]
[1765211951092,8.15637978,136.59,136.54,7.32384013]
[1765211951304,0.71,136.58,136.54,8.03384013]
[1765211951494,0.71,136.58,136.54,15.48021991]
[1765211951694,0.71,136.58,136.55,7.32323031]
[1765211951897,23.49705254,136.6,136.56,7.32270414]
[1765211952107,105.21,136.59,136.56,7.32270414]
[1765211952319,104.5,136.59,136.57,0.71]
[1765211952632,8.02,136.63,136.58,7.44637978]
[1765211952926,8.02,136.63,136.59,7.44637978]
[1765211953125,16.9663247,136.62,136.57,7.44637978]
[1765211953430,0.71,136.61,136.57,7.44637978]
[1765211954327,0.71,136.61,136.57,15.47825811]
[1765211954518,0.71,136.61,136.58,7.44637978]
[1765211954713,8.73,136.63,136.59,7.44637978]
[1765211954912,8.73,136.63,136.59,8.15637978]
[1765211955428,0.71,136.62,136.58,7.44637978]
[1765211955616,0.71,136.62,136.58,8.15637978]
[1765211956123,8.15637978,136.62,136.57,14.76825811]
[1765211956299,8.02962298,136.62,136.57,15.47825811]
[1765211956503,0.71,136.61,136.57,15.47825811]
[1765211956699,8.02,136.63,136.59,7.44637978]
[1765211957110,8.73,136.63,136.59,8.15637978]
[1765211957507,15.33904054,136.63,136.58,7.44637978]
[1765211957752,0.71,136.62,136.57,7.44637978]
[1765211958044,7.44637978,136.6,136.54,7.44637978]
[1765211958223,7.44637978,136.6,136.53,0.71]
[1765211958224,119.96637978,136.59,136.53,15.48060135]
[1765211958540,7.44637978,136.57,136.52,14.77113511]
[1765211958912,0.71,136.56,136.52,15.48113511]
[1765211959324,0.71,136.56,136.52,8.03475533]
[1765211959634,15.46637978,136.55,136.5,14.77218269]
[1765211959932,8.02,136.55,136.5,15.48218269]
[1765211960306,8.02,136.55,136.51,7.32540549]
[1765211960506,8.02,136.55,136.52,7.44637978]
[1765211960717,8.02,136.57,136.53,7.44637978]
[1765211960932,8.02,136.57,136.53,8.15637978]
[1765211961234,8.02,136.57,136.54,0.68]
[1765211962007,0.66,136.62,136.56,7.44637978]
[1765211962209,8.68,136.62,136.57,7.44637978]
[1765211962418,24.988864,136.62,136.57,7.44637978]
[1765211962629,24.988864,136.62,136.58,0.68]
[1765211962829,24.328864,136.62,136.57,14.76842819]
[1765211963015,0.66,136.61,136.57,15.44842819]
[1765211963338,8.02,136.62,136.58,0.68]
[1765211963631,8.68,136.62,136.58,8.12637978]
[1765211964526,8.68,136.62,136.58,7.32168936]
[1765211964740,8.68,136.62,136.58,15.44806057]
[1765211965041,8.02,136.62,136.59,0.68]
[1765211965214,8.02,136.64,136.6,7.44637978]
[1765211965628,8.68,136.64,136.6,8.12637978]
[1765211966334,0.66,136.63,136.59,7.44637978]
[1765211966632,15.4254449,136.63,136.58,7.44637978]
[1765211966837,7.97906512,136.63,136.59,12.94693023]
[1765211967010,0.66,136.62,136.59,12.94693023]
[1765211967229,0.66,136.62,136.58,0.68]
[1765211967230,8.02,136.64,136.6,12.94693023]
[1765211967553,8.68,136.64,136.6,13.62693023]
[1765211968137,8.02,136.64,136.61,13.62693023]
[1765211968456,8.68,136.64,136.6,13.62693023]
[1765211969145,8.68,136.64,136.6,20.94751298]
[1765211969331,8.68,136.64,136.61,12.94693023]
[1765211970257,0.66,136.63,136.6,12.94693023]
[1765211970762,7.9792069,136.63,136.59,12.94693023]
[1765211970934,0.66,136.63,136.59,12.94693023]
[1765211971134,7.97912634,136.63,136.59,12.94693023]
[1765211971560,0.66,136.63,136.59,12.94693023]
[1765211971857,7.97915201,136.63,136.59,12.94693023]
[1765211972039,7.97915201,136.63,136.59,13.62693023]
[1765211972238,7.97915201,136.63,136.53,0.68]
[1765211972239,12.94693023,136.6,136.53,0.68]
[1765211972445,20.96693023,136.59,136.54,8.00349225]
[1765211972761,0.66,136.58,136.54,13.62693023]
[1765211973056,8.68,136.59,136.55,13.62693023]
[1765211973559,0.66,136.58,136.54,12.94693023]
[1765211973859,0.66,136.58,136.53,13.62693023]
[1765211973860,13.60693023,136.58,136.53,13.62693023]
[1765211974333,0.66,136.57,136.53,13.62693023]
[1765211974745,0.66,136.57,136.53,0.68]
[1765211974948,8.02,136.56,136.53,12.94693023]
[1765211975149,8.02,136.56,136.53,13.62693023]
[1765211975963,8.02,136.58,136.55,12.94693023]
[1765211976467,8.02,136.58,136.56,0.68]
[1765211976843,0.66,136.57,136.53,12.94693023]
[1765211977050,0.66,136.57,136.53,13.62693023]
[1765211977557,8.02,136.58,136.54,0.68]
[1765211977754,8.68,136.58,136.54,13.62693023]
[1765211978271,8.02,136.58,136.55,0.68]
[1765211978490,8.68,136.58,136.54,13.62693023]
[1765211978675,0.66,136.57,136.53,12.94693023]
[1765211978853,8.02,136.58,136.54,13.62693023]
[1765211979165,120.808864,136.61,136.54,13.62693023]
[1765211979166,128.7890516,136.61,136.56,12.94693023]
[1765211979369,136.8090516,136.61,136.57,12.94693023]
[1765211979864,129.488864,136.61,136.57,13.62693023]
[1765211980169,0.66,136.6,136.57,12.94693023]
[1765211980362,7.31885855,136.64,136.59,12.94693023]
[1765211980565,0.66,136.63,136.6,12.94693023]
[1765211981567,0.66,136.63,136.59,13.62693023]
[1765211982157,0.66,136.63,136.59,20.26804938]
[1765211982362,0.66,136.63,136.59,13.62693023]
[1765211983167,8.02,136.64,136.6,13.62693023]
[1765211983374,8.02,136.64,136.61,12.94693023]
[1765211983565,8.80994492,136.66,136.61,0.68]
[1765211983769,8.80994492,136.64,136.58,0.68]
[1765211983986,12.94693023,136.63,136.56,8.02]
[1765211984158,8.02,136.62,136.58,12.94693023]
[1765211984358,21.62693023,136.62,136.57,13.62693023]
[1765211984560,0.66,136.61,136.57,13.62693023]
[1765211985769,7.98018671,136.61,136.57,13.62693023]
[1765211985981,12.94693023,136.6,136.54,13.62693023]
[1765211986173,8.02,136.59,136.54,13.62693023]
[1765211986492,8.02,136.59,136.55,0.68]
[1765211986662,8.02,136.59,136.56,12.94693023]
[1765211987180,8.02,136.59,136.56,13.62693023]
[1765211987490,0.66,136.58,136.54,20.95056857]
[1765211987987,0.66,136.58,136.54,0.68]
[1765211988175,0.66,136.58,136.54,13.62693023]
[1765211989381,7.98176067,136.58,136.54,13.62693023]
[1765211989586,7.98176067,136.58,136.53,12.94693023]
[1765211989755,7.98176067,136.58,136.54,0.68]
[1765211990970,7.98176067,136.58,136.54,13.62693023]
[1765211992491,15.34141032,136.59,136.55,0.69]
[1765211992788,0.7,136.58,136.54,12.94693023]
[1765211992960,0.7,136.58,136.54,13.63693023]
[1765211993589,0.7,136.58,136.54,0.69]
[1765211993899,12.94693023,136.57,136.51,12.94693023]
[1765211994066,8.02,136.56,136.53,12.94693023]
[1765211994465,8.02,136.56,136.53,13.63693023]
[1765211994768,15.34239904,136.57,136.53,13.63693023]
[1765211994965,16.04239904,136.57,136.53,13.63693023]
[1765211995189,8.02,136.57,136.54,13.63693023]
[1765211995496,7.32193852,136.58,136.54,12.94693023]
[1765211995697,0.7,136.57,136.52,8.02]
[1765211995860,0.7,136.57,136.53,12.94693023]
[1765211996060,0.7,136.57,136.52,21.65693023]
[1765211996791,7.32278851,136.56,136.52,21.65693023]
[1765211996972,7.32278851,136.56,136.52,8.71]
[1765211997169,7.32278851,136.56,136.53,0.69]
[1765211997378,8.02278851,136.56,136.52,8.71]
[1765211997577,8.02278851,136.56,136.52,21.65693023]
[1765211998279,8.02278851,136.56,136.52,8.71]
[1765211998479,8.02278851,136.56,136.52,21.65693023]
[1765212000101,12.94693023,136.58,136.53,12.94693023]
[1765212000324,113.17,136.59,136.54,12.94693023]
[1765212000478,7.32195759,136.58,136.54,12.94693023]
[1765212000678,112.52,136.59,136.55,0.7]
[1765212001017,0.65,136.58,136.54,13.64693023]
[1765212001205,113.17,136.59,136.55,13.64693023]
[1765212001412,0.65,136.58,136.53,12.94693023]
[1765212001600,12.94693023,136.57,136.51,0.7]
[1765212001902,20.96693023,136.56,136.5,12.94693023]
[1765212002082,20.96693023,136.56,136.5,13.64693023]
[1765212002083,21.61693023,136.56,136.5,13.64693023]
[1765212002288,0.65,136.55,136.5,13.64693023]
[1765212002799,0.65,136.55,136.51,0.7]
[1765212003194,13.59693023,136.55,136.51,0.7]
[1765212003402,20.92065938,136.55,136.51,0.7]
[1765212003584,0.65,136.54,136.51,0.7]
[1765212004111,8.02,136.56,136.53,12.94693023]
[1765212004480,8.02,136.56,136.53,13.64693023]
[1765212005194,8.02,136.56,136.54,0.7]
[1765212005600,15.99194113,136.58,136.54,0.7]
[1765212005823,15.99194113,136.58,136.54,13.64693023]
[1765212006048,0.65,136.57,136.52,12.94693023]
[1765212006191,29.25579423,136.55,136.49,8.72]
[1765212006391,8.02,136.54,136.49,21.66693023]
[1765212006601,8.67,136.54,136.49,21.66693023]
[1765212006800,0.65,136.53,136.5,12.94693023]
[1765212007006,8.67,136.56,136.51,12.94693023]
[1765212007294,28.94006841,136.56,136.51,13.64693023]
[1765212007493,0.65,136.55,136.51,13.64693023]
[1765212007898,0.65,136.55,136.51,0.7]
[1765212008100,0.65,136.55,136.5,12.94693023]
[1765212008409,0.65,136.55,136.5,13.64693023]
[1765212008724,15.99313818,136.56,136.51,13.64693023]
[1765212009325,0.65,136.55,136.51,0.7]
[1765212009627,13.59693023,136.55,136.49,21.66693023]
[1765212009930,13.59693023,136.55,136.47,0.7]
[1765212009931,12.94693023,136.53,136.47,0.7]
[1765212010110,8.02,136.52,136.48,12.94693023]
[1765212010305,8.67,136.52,136.47,13.64693023]
[1765212010506,0.65,136.51,136.47,13.64693023]
[1765212011025,0.65,136.51,136.46,7.32812983]
[1765212011026,0.65,136.51,136.46,12.94693023]
[1765212011207,7.32600732,136.5,136.45,13.64693023]
[1765212011726,0.65,136.5,136.46,13.64693023]
[1765212011911,7.32560736,136.51,136.46,13.64693023]
[1765212012112,0.65,136.5,136.46,13.64693023]
[1765212012355,7.97560736,136.51,136.47,0.7]
[1765212012559,7.97560736,136.51,136.47,13.64693023]
[1765212012777,128.828864,136.54,136.49,12.94693023]
[1765212012940,129.478864,136.54,136.5,13.64693023]
[1765212013264,136.80320512,136.54,136.5,13.64693023]
[1765212013480,0.65,136.53,136.49,12.94693023]
[1765212013643,13.59693023,136.53,136.47,12.94693023]
[1765212014034,13.59693023,136.53,136.48,0.7]
[1765212014235,0.65,136.52,136.48,0.7]
[1765212014736,0.65,136.52,136.48,13.64693023]
[1765212014931,0.65,136.52,136.48,0.7]
[1765212015128,0.65,136.52,136.47,12.94693023]
[1765212015327,7.32547066,136.51,136.47,0.7]
[1765212015540,15.34547066,136.51,136.47,0.7]
[1765212015747,0.65,136.5,136.46,20.96693023]
[1765212015961,0.65,136.5,136.46,21.66693023]
[1765212016759,13.59693023,136.5,136.44,8.02919797]
[1765212016958,13.59693023,136.5,136.44,20.2761282]
[1765212017168,13.59693023,136.5,136.44,13.64693023]
[1765212017374,7.32654406,136.49,136.45,12.94693023]
[1765212017574,20.92301584,136.5,136.45,12.94693023]
[1765212017756,0.65,136.49,136.45,13.64693023]
[1765212018836,7.97678481,136.49,136.44,12.94693023]
[1765212019035,20.92371504,136.49,136.44,12.94693023]
[1765212019238,7.32561428,136.51,136.48,12.94693023]
[1765212019444,15.99561428,136.51,136.46,12.94693023]
[1765212019652,15.99561428,136.51,136.46,13.64693023]
[1765212019857,0.65,136.5,136.46,13.64693023]
[1765212021253,7.97614195,136.5,136.46,13.64693023]
[1765212021855,7.99614195,136.5,136.46,13.64693023]
[1765212022368,0.67,136.49,136.46,13.64693023]
[1765212022971,7.99614195,136.5,136.46,13.64693023]
[1765212023179,15.34569203,136.51,136.47,13.66693023]
[1765212023359,16.01569203,136.51,136.47,0.72]
[1765212023595,28.29262226,136.51,136.47,0.72]
[1765212023773,0.67,136.5,136.47,0.72]
[1765212024098,0.67,136.5,136.46,13.66693023]
[1765212024671,7.9962279,136.5,136.46,13.66693023]
[1765212025188,13.61693023,136.49,136.43,12.94693023]
[1765212025372,8.02,136.48,136.43,12.94693023]
[1765212025572,8.69,136.48,136.43,12.94693023]
[1765212025773,8.02,136.48,136.44,0.72]
[1765212025973,8.69,136.48,136.44,13.66693023]
[1765212026173,8.69,136.48,136.45,13.66693023]
[1765212026794,8.69,136.48,136.45,12.94693023]
[1765212027007,8.69,136.48,136.44,12.94693023]
[1765212027171,8.69,136.48,136.44,13.66693023]
[1765212027689,16.01722874,136.48,136.44,13.66693023]
[1765212028076,16.01722874,136.48,136.44,0.72]
[1765212028276,16.01722874,136.48,136.45,13.66693023]
[1765212028677,16.01722874,136.48,136.45,8.17042365]
[1765212028877,0.67,136.47,136.43,7.32967323]
[1765212029180,0.67,136.47,136.44,7.45042365]
[1765212029573,7.99778974,136.47,136.44,7.45042365]
[1765212029794,7.99778974,136.47,136.42,7.45042365]
[1765212029995,0.67,136.46,136.42,7.45042365]
[1765212030681,0.67,136.46,136.41,3.13091116]
[1765212030879,0.67,136.46,136.41,11.1417026]
[1765212031289,3.80091116,136.46,136.41,10.4617026]
[1765212031595,11.12942791,136.46,136.41,10.4617026]
[1765212031800,0.67,136.45,136.41,10.4617026]
[1765212031969,0.67,136.45,136.4,11.14208034]
[1765212032387,0.67,136.45,136.41,3.13091116]
[1765212032698,0.67,136.46,136.42,3.13091116]
[1765212032876,0.67,136.46,136.42,3.81091116]
[1765212033300,7.99779383,136.47,136.43,3.13091116]
[1765212033599,7.99779383,136.47,136.43,3.81091116]
[1765212033795,7.32779383,136.47,136.43,3.13091116]
[1765212034099,0.67,136.46,136.43,3.13091116]
[1765212034292,0.67,136.46,136.41,3.13091116]
[1765212034482,3.13091116,136.45,136.39,32.34047106]
[1765212034683,11.15091116,136.45,136.39,16.03160706]
[1765212034883,0.67,136.44,136.39,16.03160706]
[1765212035199,0.67,136.44,136.39,19.16251822]
[1765212035700,0.67,136.44,136.39,11.15091116]
[1765212035886,10.46067734,136.43,136.38,3.13091116]
[1765212036395,0.67,136.43,136.39,3.81091116]
[1765212036996,0.67,136.43,136.39,3.13091116]
[1765212037798,7.99986317,136.43,136.39,3.13091116]
[1765212038177,7.32986317,136.43,136.39,3.13091116]
[1765212038381,122.82109887,136.46,136.39,3.13091116]
[1765212038382,111.82855182,136.46,136.42,3.13091116]
[1765212038583,111.82855182,136.46,136.41,3.81091116]
[1765212038584,0.67,136.45,136.41,3.81091116]
[1765212039079,0.67,136.45,136.39,33.68137687]
[1765212039080,0.67,136.45,136.39,34.36137687]
[1765212039282,0.67,136.45,136.4,3.13091116]
[1765212039701,0.67,136.45,136.41,3.13091116]
[1765212039902,114.95946298,136.46,136.41,11.14143105]
[1765212039903,107.63091116,136.46,136.41,11.14143105]
[1765212040090,108.30091116,136.46,136.41,11.14143105]
[1765212040289,107.63091116,136.46,136.41,11.14143105]
[1765212040609,0.67,136.45,136.41,11.14143105]
[1765212042394,0.67,136.45,136.41,7.33051989]
[1765212042607,0.67,136.45,136.41,10.46143105]
[1765212044616,0.67,136.45,136.41,11.14143105]
[1765212045211,16.01785295,136.47,136.42,3.81091116]
[1765212045408,16.01785295,136.47,136.41,25.657622]
[1765212045409,7.3269573,136.49,136.43,0.68]
[1765212045607,3.13091116,136.46,136.41,29.46853316]
[1765212045792,3.13091116,136.46,136.41,11.14143105]
[1765212046112,0.67,136.46,136.42,0.68]
[1765212046924,0.67,136.46,136.41,11.14143105]
[1765212047352,8.80994492,136.5,136.41,11.14143105]
[1765212047353,0.67,136.52,136.45,3.13091116]
[1765212047627,24.43757346,136.55,136.49,3.13091116]
[1765212047628,0.67,136.54,136.49,3.13091116]
[1765212047837,7.99392718,136.54,136.49,3.81091116]
[1765212048294,7.32392718,136.54,136.5,3.81091116]
[1765212048830,7.99392718,136.54,136.5,3.81091116]
[1765212050155,8.02,136.55,136.52,3.13091116]
[1765212050457,8.69,136.55,136.51,3.13091116]
[1765212050618,8.69,136.55,136.51,3.81091116]
[1765212050821,15.34334859,136.55,136.51,3.13091116]
[1765212051030,7.99334859,136.55,136.51,3.81091116]
[1765212051455,7.32284291,136.56,136.52,3.81091116]
[1765212051666,8.73,136.57,136.52,3.81091116]
[1765212051826,8.73,136.57,136.53,0.68]
[1765212052025,16.05229254,136.57,136.52,3.81091116]
[1765212052242,16.05229254,136.57,136.53,0.68]
[1765212052843,8.02,136.57,136.53,3.81091116]
[1765212053420,16.05240461,136.57,136.53,3.81091116]
[1765212053824,0.71,136.56,136.51,7.32535644]
[1765212054032,0.71,136.56,136.52,3.13091116]